fUST/lending_fUST_20241202
["ID","MTS","AMOUNT","RATE_DAILY","PERIOD"]
[343953908,1733136638407,-172.3,0.00027132,5]
[343953909,1733136638417,-780.2924,0.00027144,15]
[343953910,1733136638427,-174.354716,0.00027144,7]
[343953911,1733136638437,-174.354716,0.00027144,7]
[343953912,1733136638446,-164.157464,0.00027144,7]
[343953913,1733136638455,-178.477896,0.00027144,7]
[343953914,1733136638465,-1550.503849,0.000273,2]
[343953915,1733136638475,-151.0,0.000273,7]
[343953916,1733136638484,-3023.84544222,0.000273,2]
[343953917,1733136638494,-2253.82099492,0.00027307,2]
[343953938,1733136640160,-4412.17900508,0.00027307,2]
[343953939,1733136640170,-151.0,0.00027339,7]
[343953940,1733136640179,-528.69352179,0.00027373,2]
[343953941,1733136640188,-160.05979709,0.00027373,2]
[343953942,1733136640197,-186.33697864,0.00027373,2]
[343953943,1733136640206,-500.0,0.00027373,2]
[343953944,1733136640216,-500.0,0.00027373,2]
[343953945,1733136640226,-502.10788806,0.00027373,2]
[343953946,1733136640240,-151.0,0.00027373,7]
[343953947,1733136640249,-172.3426,0.00027373,7]
[343953948,1733136640259,-172.3426,0.00027373,7]
[343953949,1733136640268,-151.0,0.00027373,7]
[343953950,1733136640278,-151.0,0.00027373,7]
[343953951,1733136640290,-276.190362,0.00027373,7]
[343953952,1733136640301,-276.190362,0.00027373,7]
[343953953,1733136640317,-586.622153,0.00027396,7]
[343953954,1733136640328,-586.622153,0.00027396,7]
[343953955,1733136640339,-151.0,0.00027397,7]
[343953956,1733136640350,-151.0,0.00027397,7]
[343953957,1733136640360,-155.105461,0.00027397,7]
[343953958,1733136640370,-151.0,0.00027397,7]
[343953959,1733136640383,-168.530228,0.00027397,7]
[343953960,1733136640396,-151.0,0.00027397,7]
[343953961,1733136640406,-151.0,0.00027397,7]
[343953962,1733136640416,-151.0,0.00027397,7]
[343953963,1733136640425,-285.553956,0.00027397,7]
[343953964,1733136640435,-172.3426,0.00027397,7]
[343953965,1733136640444,-172.3426,0.00027397,7]
[343953966,1733136640539,-172.3426,0.00027397,7]
[343953967,1733136640549,-172.3426,0.00027397,7]
[343953969,1733136640559,-172.3426,0.00027397,7]
[343953970,1733136640570,-172.3426,0.00027397,7]
[343953971,1733136640579,-172.3426,0.00027397,7]
[343953972,1733136640588,-172.3426,0.00027397,7]
[343953973,1733136640599,-172.3426,0.00027397,7]
[343953974,1733136640608,-172.3426,0.00027397,7]
[343953975,1733136640618,-172.3426,0.00027397,7]
[343953976,1733136640627,-172.3426,0.00027397,7]
[343953977,1733136640636,-151.0,0.00027397,7]
[343953978,1733136640646,-151.0,0.00027397,7]
[343953979,1733136640657,-151.0,0.00027397,7]
[343953980,1733136640666,-151.0,0.00027397,7]
[343953981,1733136640676,-151.0,0.00027397,7]
[343953982,1733136640686,-151.0,0.00027397,7]
[343953983,1733136640696,-151.0,0.00027397,7]
[343953984,1733136640705,-151.975445,0.00027397,7]
[343953985,1733136640715,-257.37139,0.00027397,7]
[343953986,1733136640725,-257.37139,0.00027397,7]
[343953987,1733136640734,-257.37139,0.00027397,7]
[343953988,1733136640744,-257.37139,0.00027397,7]
[343953989,1733136640753,-257.37139,0.00027397,7]
[343953990,1733136640763,-257.37139,0.00027397,7]
[343953991,1733136640773,-257.37139,0.00027397,7]
[343953992,1733136640783,-257.371388,0.00027397,7]
[343953993,1733136640792,-162.27067,0.00027397,7]
[343953994,1733136640803,-500.0,0.00027397,7]
[343953995,1733136640813,-500.0,0.00027397,7]
[343953996,1733136640824,-200.0,0.00027397,7]
[343953997,1733136640833,-500.0,0.00027397,7]
[343953998,1733136640845,-500.0,0.00027397,7]
[343953999,1733136640855,-500.0,0.00027397,7]
[343954000,1733136640865,-500.0,0.00027397,7]
[343954001,1733136640874,-350.00163885,0.00027397,7]
[343954002,1733136640884,-500.0,0.00027397,7]
[343954003,1733136640895,-301.090537,0.00027397,7]
[343954004,1733136640905,-301.090537,0.00027397,7]
[343954005,1733136640915,-301.090537,0.00027397,7]
[343954006,1733136640925,-500.0,0.00027397,7]
[343954007,1733136640935,-301.090537,0.00027397,7]
[343954008,1733136640945,-301.090537,0.00027397,7]
[343954009,1733136640955,-301.090537,0.00027397,7]
[343954010,1733136640965,-301.090537,0.00027397,7]
[343954011,1733136640976,-301.090537,0.00027397,7]
[343954012,1733136640985,-301.090537,0.00027397,7]
[343954013,1733136640995,-301.090537,0.00027397,7]
[343954014,1733136641004,-659.788141,0.00027397,7]
[343954015,1733136641013,-659.788141,0.00027397,7]
[343954016,1733136641023,-659.788141,0.00027397,7]
[343954017,1733136641048,-659.788141,0.00027397,7]
[343954018,1733136641058,-659.788141,0.00027397,7]
[343954019,1733136641067,-659.788141,0.00027397,7]
[343954020,1733136641078,-659.788141,0.00027397,7]
[343954021,1733136641090,-659.788141,0.00027397,7]
[343954022,1733136641099,-659.788141,0.00027397,7]
[343954023,1733136641108,-659.788141,0.00027397,7]
[343954024,1733136641117,-500.0,0.00027397,7]
[343954025,1733136641126,-500.0,0.00027397,7]
[343954026,1733136641136,-500.0,0.00027397,7]
[343954027,1733136641145,-240.4849469,0.00027397,7]
[343954028,1733136641154,-174.354716,0.00027397,7]
[343954029,1733136641163,-174.354716,0.00027397,7]
[343954030,1733136641173,-174.354716,0.00027397,7]
[343954031,1733136641182,-174.354716,0.00027397,7]
[343954032,1733136641191,-174.354716,0.00027397,7]
[343954033,1733136641201,-174.354716,0.00027397,7]
[343954034,1733136641210,-174.354716,0.00027397,7]
[343954035,1733136641219,-174.354716,0.00027397,7]
[343954036,1733136641229,-742.198625,0.00027397,7]
[343954037,1733136641240,-742.198625,0.00027397,7]
[343954038,1733136641249,-742.198625,0.00027397,7]
[343954039,1733136641258,-742.198625,0.00027397,7]
[343954040,1733136641267,-586.622153,0.00027397,7]
[343954041,1733136641278,-742.198625,0.00027397,7]
[343954042,1733136641287,-586.622153,0.00027397,7]
[343954043,1733136641296,-742.198625,0.00027397,7]
[343954044,1733136641305,-742.198625,0.00027397,7]
[343954045,1733136641315,-586.622153,0.00027397,7]
[343954046,1733136641324,-742.198625,0.00027397,7]
[343954047,1733136641333,-586.622153,0.00027397,7]
[343954048,1733136641342,-586.622153,0.00027397,7]
[343954049,1733136641351,-586.622153,0.00027397,7]
[343954050,1733136641361,-586.622153,0.00027397,7]
[343954051,1733136641371,-586.622153,0.00027397,7]
[343954052,1733136641380,-500.0,0.00027397,7]
[343954053,1733136641390,-516.63840263,0.00027397,7]
[343954054,1733136641398,-500.0,0.00027397,7]
[343954055,1733136641407,-500.0,0.00027397,7]
[343954056,1733136641417,-638.01,0.00027397,7]
[343954057,1733136641426,-500.0,0.00027397,7]
[343954058,1733136641435,-624.24,0.00027397,7]
[343954059,1733136641444,-500.0,0.00027397,7]
[343954060,1733136641453,-151.0,0.00027397,7]
[343954061,1733136641462,-151.0,0.00027397,7]
[343954062,1733136641472,-181.833896,0.00027397,7]
[343954063,1733136641481,-500.0,0.00027397,7]
[343954064,1733136641490,-500.0,0.00027397,7]
[343954065,1733136641500,-500.0,0.00027397,7]
[343954066,1733136641510,-636.26014033,0.00027397,7]
[343954067,1733136641519,-500.0,0.00027397,7]
[343954068,1733136641529,-500.0,0.00027397,7]
[343954069,1733136641540,-500.0,0.00027397,7]
[343954070,1733136641566,-500.0,0.00027397,7]
[343954071,1733136641576,-500.0,0.00027397,7]
[343954072,1733136641585,-500.0,0.00027397,7]
[343954073,1733136641595,-152.442086,0.00027397,7]
[343954074,1733136641604,-152.442086,0.00027397,7]
[343954075,1733136641614,-152.442086,0.00027397,7]
[343954076,1733136641624,-152.442086,0.00027397,7]
[343954077,1733136641633,-152.442086,0.00027397,7]
[343954078,1733136641643,-152.442086,0.00027397,7]
[343954079,1733136641654,-152.442086,0.00027397,7]
[343954080,1733136641664,-152.442086,0.00027397,7]
[343954081,1733136641674,-152.442086,0.00027397,7]
[343954082,1733136641684,-426.05914857,0.00027397,7]
[343954083,1733136641694,-152.442086,0.00027397,7]
[343954084,1733136641704,-500.0,0.00027397,7]
[343954085,1733136641714,-500.0,0.00027397,7]
[343954086,1733136641724,-539.92,0.00027397,7]
[343954087,1733136641734,-500.0,0.00027397,7]
[343954088,1733136641743,-500.0,0.00027397,7]
[343954089,1733136641752,-500.0,0.00027397,7]
[343954090,1733136641763,-500.0,0.00027397,7]
[343954091,1733136641773,-500.0,0.00027397,7]
[343954092,1733136641782,-500.0,0.00027397,7]
[343954093,1733136641792,-500.0,0.00027397,7]
[343954094,1733136641802,-500.0,0.00027397,7]
[343954095,1733136641812,-500.0,0.00027397,7]
[343954096,1733136641823,-500.0,0.00027397,7]
[343954097,1733136641833,-501.56261412,0.00027397,7]
[343954098,1733136641842,-500.0,0.00027397,7]
[343954099,1733136641852,-500.0,0.00027397,7]
[343954100,1733136641861,-500.0,0.00027397,7]
[343954101,1733136641871,-151.0,0.00027397,7]
[343954102,1733136641881,-151.0,0.00027397,7]
[343954103,1733136641891,-154.572936,0.00027397,7]
[343954104,1733136641901,-500.0,0.00027397,7]
[343954105,1733136641911,-500.0,0.00027397,7]
[343954106,1733136641921,-500.0,0.00027397,7]
[343954107,1733136641930,-500.0,0.00027397,7]
[343954108,1733136641939,-500.0,0.00027397,7]
[343954109,1733136641949,-2281.35,0.00027397,7]
[343954110,1733136641960,-500.0,0.00027397,7]
[343954111,1733136641970,-10990.06,0.00027397,7]
[343954112,1733136641979,-639.99,0.00027397,7]
[343954113,1733136641988,-500.0,0.00027397,7]
[343954114,1733136641998,-500.0,0.00027397,7]
[343954115,1733136642008,-580.49,0.00027397,7]
[343954116,1733136642017,-500.0,0.00027397,7]
[343954117,1733136642026,-500.0,0.00027397,7]
[343954118,1733136642037,-500.0,0.00027397,7]
[343954119,1733136642047,-500.0,0.00027397,7]
[343954120,1733136642057,-500.0,0.00027397,7]
[343954121,1733136642085,-500.0,0.00027397,7]
[343954122,1733136642095,-500.0,0.00027397,7]
[343954123,1733136642104,-500.0,0.00027397,7]
[343954124,1733136642114,-229.36250512,0.00027397,7]
[343954125,1733136642123,-500.0,0.00027397,7]
[343954126,1733136642133,-500.0,0.00027397,7]
[343954127,1733136642142,-500.0,0.00027397,7]
[343954128,1733136642152,-500.0,0.00027397,7]
[343954129,1733136642162,-500.0,0.00027397,7]
[343954130,1733136642172,-1001.29,0.00027397,7]
[343954131,1733136642184,-500.0,0.00027397,7]
[343954132,1733136642194,-500.0,0.00027397,2]
[343954133,1733136642204,-500.0,0.00027397,7]
[343954134,1733136642214,-500.0,0.00027397,7]
[343954135,1733136642224,-276.190362,0.00027397,7]
[343954136,1733136642237,-276.190362,0.00027397,7]
[343954137,1733136642247,-276.190362,0.00027397,7]
[343954138,1733136642257,-276.190362,0.00027397,7]
[343954139,1733136642266,-500.0,0.00027397,7]
[343954140,1733136642277,-500.0,0.00027397,7]
[343954141,1733136642286,-276.190362,0.00027397,7]
[343954142,1733136642295,-276.190362,0.00027397,7]
[343954143,1733136642305,-276.190362,0.00027397,7]
[343954144,1733136642316,-276.190362,0.00027397,7]
[343954145,1733136642326,-500.0,0.00027397,7]
[343954146,1733136642335,-500.0,0.00027397,7]
[343954147,1733136642344,-500.0,0.00027397,7]
[343954148,1733136642354,-736.26,0.00027397,7]
[343954149,1733136642363,-500.0,0.00027397,7]
[343954150,1733136642373,-500.0,0.00027397,7]
[343954151,1733136642382,-500.0,0.00027397,7]
[343954152,1733136642391,-765.33,0.00027397,7]
[343954153,1733136642401,-500.0,0.00027397,7]
[343954154,1733136642411,-500.0,0.00027397,7]
[343954155,1733136642421,-500.0,0.00027397,7]
[343954156,1733136642430,-500.0,0.00027397,7]
[343954157,1733136642439,-501.6309289,0.00027397,7]
[343954158,1733136642448,-507.97935063,0.00027397,7]
[343954159,1733136642458,-500.0,0.00027397,7]
[343954160,1733136642467,-500.0,0.00027397,7]
[343954161,1733136642477,-151.0,0.00027397,7]
[343954162,1733136642486,-151.0,0.00027397,7]
[343954163,1733136642496,-151.0,0.00027397,7]
[343954164,1733136642505,-152.074381,0.00027397,7]
[343954165,1733136642515,-235.38776686,0.00027397,2]
[343954166,1733136642525,-500.0,0.00027407,10]
[343954167,1733136642535,-174.354716,0.00027465,7]
[343954168,1733136642545,-174.354716,0.00027465,7]
[343954169,1733136642555,-276.190362,0.00027465,7]
[343954170,1733136642565,-276.190354,0.00027465,7]
[343954171,1733136642588,-5000.0,0.00027465,7]
[343954172,1733136642598,-499.11,0.000275,31]
[343954173,1733136642608,-499.11,0.000275,31]
[343954174,1733136642619,-499.11,0.000275,31]
[343954175,1733136642629,-499.11,0.000275,31]
[343954176,1733136642638,-499.11,0.000275,31]
[343954177,1733136642648,-499.11,0.000275,31]
[343954178,1733136642658,-499.11,0.000275,31]
[343954179,1733136642668,-499.11,0.000275,31]
[343954181,1733136642679,-499.11,0.000275,31]
[343954182,1733136642689,-499.11,0.000275,31]
[343954183,1733136642699,-499.11,0.000275,31]
[343954184,1733136642709,-499.11,0.000275,31]
[343954185,1733136642719,-742.198625,0.000275,7]
[343954186,1733136642728,-742.198625,0.000275,7]
[343954188,1733136642738,-586.622153,0.000275,7]
[343954189,1733136642748,-586.622153,0.000275,7]
[343954192,1733136642757,-152.442086,0.000275,7]
[343954196,1733136642768,-152.442094,0.000275,7]
[343954197,1733136642778,-150.0,0.000275,2]
[343954199,1733136642787,-666.0,0.00027571,2]
[343954201,1733136642797,-301.090537,0.00027571,7]
[343954202,1733136642807,-301.090537,0.00027571,7]
[343954203,1733136642817,-659.788141,0.00027571,7]
[343954204,1733136642827,-659.788147,0.00027571,7]
[343954205,1733136642836,-500.0,0.000276,24]
[343954206,1733136642846,-172.3,0.00027603,6]
[343954207,1733136642855,-500.0,0.00027671,7]
[343954208,1733136642865,-500.0,0.00027671,7]
[343954209,1733136642875,-200.0,0.00027671,7]
[343954210,1733136642884,-500.0,0.00027671,7]
[343954211,1733136642893,-500.0,0.00027671,7]
[343954212,1733136642902,-349.28743775,0.00027671,7]
[343954213,1733136642911,-500.0,0.00027671,7]
[343954214,1733136642921,-174.354716,0.00027671,7]
[343954216,1733136642930,-174.354709,0.00027671,7]
[343954220,1733136642939,-742.198625,0.00027671,7]
[343954222,1733136643030,-742.19863,0.00027671,7]
[343954224,1733136643040,-586.622153,0.00027671,7]
[343954225,1733136643050,-586.622153,0.00027671,7]
[343954226,1733136643060,-586.622153,0.00027671,7]
[343954227,1733136643075,-586.622153,0.00027671,7]
[343954229,1733136643085,-500.0,0.00027671,7]
[343954231,1733136643095,-500.0,0.00027671,7]
[343954233,1733136643108,-638.01,0.00027671,7]
[343954235,1733136643117,-500.0,0.00027671,7]
[343954236,1733136643126,-624.24,0.00027671,7]
[343954237,1733136643135,-500.0,0.00027671,7]
[343954238,1733136643144,-643.33,0.00027671,7]
[343954239,1733136643154,-500.0,0.00027671,7]
[343954240,1733136643163,-500.0,0.00027671,7]
[343954241,1733136643172,-500.0,0.00027671,7]
[343954242,1733136643182,-500.0,0.00027671,7]
[343954243,1733136643192,-539.92,0.00027671,7]
[343954244,1733136643201,-500.0,0.00027671,7]
[343954245,1733136643210,-500.0,0.00027671,7]
[343954246,1733136643220,-396.6780658,0.00027671,7]
[343954247,1733136643231,-500.0,0.00027671,7]
[343954248,1733136643241,-500.0,0.00027671,7]
[343954249,1733136643251,-160.9,0.00027671,7]
[343954250,1733136643260,-256.20144104,0.00027671,7]
[343954251,1733136643271,-500.0,0.00027671,7]
[343954252,1733136643280,-500.0,0.00027671,7]
[343954253,1733136643289,-500.0,0.00027671,7]
[343954254,1733136643298,-500.0,0.00027671,7]
[343954255,1733136643308,-549.54180952,0.00027671,7]
[343954256,1733136643317,-222.40181947,0.00027671,7]
[343954257,1733136643338,-2281.35,0.00027671,7]
[343954258,1733136643349,-500.0,0.00027671,7]
[343954259,1733136643358,-10990.06,0.00027671,7]
[343954260,1733136643368,-500.0,0.00027671,7]
[343954261,1733136643377,-500.0,0.00027671,7]
[343954262,1733136643386,-500.0,0.00027671,7]
[343954263,1733136643396,-500.0,0.00027671,7]
[343954265,1733136643406,-626.13982976,0.00027671,7]
[343954266,1733136643415,-500.0,0.00027671,7]
[343954267,1733136643424,-500.0,0.00027671,7]
[343954268,1733136643434,-500.0,0.00027671,7]
[343954269,1733136643443,-500.0,0.00027671,7]
[343954270,1733136643452,-500.0,0.00027671,7]
[343954271,1733136643461,-500.0,0.00027671,7]
[343954272,1733136643470,-500.0,0.00027671,7]
[343954273,1733136643480,-1001.29,0.00027671,7]
[343954274,1733136643490,-500.0,0.00027671,7]
[343954275,1733136643499,-500.0,0.00027671,7]
[343954276,1733136643508,-500.0,0.00027671,7]
[343954277,1733136643517,-515.28,0.00027671,7]
[343954278,1733136643526,-500.0,0.00027671,7]
[343954279,1733136643535,-736.26,0.00027671,7]
[343954280,1733136643544,-500.0,0.00027671,7]
[343954281,1733136643554,-500.0,0.00027671,7]
[343954282,1733136643564,-257.51654877,0.00027671,7]
[343954283,1733136643573,-765.33,0.00027671,7]
[343954284,1733136643582,-500.0,0.00027671,7]
[343954285,1733136643592,-500.0,0.00027671,7]
[343954286,1733136643601,-500.0,0.00027671,7]
[343954287,1733136643610,-500.0,0.00027671,7]
[343954288,1733136643620,-1196.58,0.000277,2]
[343954289,1733136643629,-1175.61060509,0.0002781,2]
[343954290,1733136643639,-804.97755755,0.00027921,5]
[343954291,1733136643648,-1000.0,0.00027921,5]
[343954292,1733136643658,-198.42119685,0.00027945,7]
[343954293,1733136643668,-200.0,0.00027945,7]
[343954294,1733136643677,-500.0,0.00027945,7]
[343954295,1733136643688,-500.0,0.00027945,7]
[343954296,1733136643697,-467.85218044,0.00027945,7]
[343954297,1733136643707,-586.622153,0.00027945,7]
[343954298,1733136643716,-586.622156,0.00027945,7]
[343954299,1733136643726,-500.0,0.00027945,7]
[343954300,1733136643735,-638.01,0.00027945,7]
[343954301,1733136643744,-500.0,0.00027945,7]
[343954302,1733136643754,-624.24,0.00027945,7]
[343954303,1733136643763,-500.0,0.00027945,7]
[343954304,1733136643773,-500.0,0.00027945,7]
[343954305,1733136643782,-539.92,0.00027945,7]
[343954306,1733136643792,-500.0,0.00027945,7]
[343954307,1733136643801,-500.0,0.00027945,7]
[343954308,1733136643810,-500.0,0.00027945,7]
[343954309,1733136643826,-500.0,0.00027945,7]
[343954310,1733136643842,-500.0,0.00027945,7]
[343954311,1733136643851,-500.0,0.00027945,7]
[343954312,1733136643861,-2281.35,0.00027945,7]
[343954313,1733136643871,-10990.06,0.00027945,7]
[343954314,1733136643881,-500.0,0.00027945,7]
[343954315,1733136643891,-511.64098615,0.00027945,7]
[343954316,1733136643900,-500.0,0.00027945,7]
[343954317,1733136643910,-500.0,0.00027945,7]
[343954318,1733136643919,-500.0,0.00027945,7]
[343954319,1733136643928,-500.0,0.00027945,7]
[343954320,1733136643938,-1001.29,0.00027945,7]
[343954321,1733136643947,-500.0,0.00027945,7]
[343954322,1733136643957,-500.0,0.00027945,7]
[343954323,1733136643966,-500.0,0.00027945,7]
[343954324,1733136643975,-736.26,0.00027945,7]
[343954325,1733136643984,-500.0,0.00027945,7]
[343954326,1733136643993,-765.33,0.00027945,7]
[343954327,1733136644002,-500.0,0.00027945,7]
[343954328,1733136644011,-500.0,0.00027945,7]
[343954329,1733136644020,-500.0,0.00027945,7]
[343954330,1733136644029,-500.87513344,0.00027973,5]
[343954331,1733136644038,-587.0,0.00027982,2]
[343954332,1733136644047,-500.0,0.00027992,120]
[343954333,1733136644056,-500.0,0.00027992,120]
[343954334,1733136644065,-179.6,0.00027992,120]
[343954335,1733136644090,-2000.0,0.00028,5]
[343954336,1733136644099,-151.0,0.00028,11]
[343954337,1733136644108,-250.0,0.00028,120]
[343954338,1733136644117,-172.3,0.00028074,6]
[343954339,1733136644127,-3023.84544222,0.000281,2]
[343954340,1733136644137,-160.40267,0.00028163,2]
[343954341,1733136644146,-509.32605,0.00028163,2]
[343954342,1733136644156,-156.186654,0.00028163,2]
[343954343,1733136644165,-200.503336,0.00028163,2]
[343954344,1733136644175,-200.503337,0.00028163,2]
[343954345,1733136644184,-152.199376,0.00028163,2]
[343954346,1733136644193,-499.11,0.000282,31]
[343954347,1733136644205,-499.11,0.000282,31]
[343954348,1733136644215,-499.11,0.000282,31]
[343954349,1733136644224,-499.11,0.000282,31]
[343954350,1733136644238,-499.11,0.000282,31]
[343954351,1733136644247,-499.11,0.000282,31]
[343954352,1733136644256,-499.11,0.000282,31]
[343954353,1733136644265,-499.11,0.000282,31]
[343954354,1733136644276,-499.11,0.000282,31]
[343954355,1733136644285,-499.11,0.000282,31]
[343954356,1733136644295,-499.11,0.000282,31]
[343954357,1733136644305,-499.11,0.000282,31]
[343954358,1733136644315,-499.11,0.000282,31]
[343954359,1733136644336,-499.11,0.000282,31]
[343954360,1733136644345,-499.11,0.000282,31]
[343954361,1733136644354,-499.11,0.000282,31]
[343954362,1733136644364,-499.11,0.000282,31]
[343954363,1733136644373,-499.11,0.000282,31]
[343954364,1733136644383,-499.11,0.000282,31]
[343954365,1733136644393,-499.11,0.000282,31]
[343954366,1733136644403,-499.11,0.000282,31]
[343954367,1733136644413,-499.11,0.000282,31]
[343954368,1733136644422,-499.11,0.000282,31]
[343954369,1733136644431,-499.11,0.000282,31]
[343954370,1733136644441,-200.0,0.00028219,7]
[343954371,1733136644450,-500.0,0.00028219,7]
[343954372,1733136644459,-511.04,0.00028219,7]
[343954373,1733136644468,-638.01,0.00028219,7]
[343954374,1733136644478,-500.0,0.00028219,7]
[343954375,1733136644487,-624.24,0.00028219,7]
[343954376,1733136644496,-500.0,0.00028219,7]
[343954377,1733136644506,-500.0,0.00028219,7]
[343954378,1733136644515,-539.92,0.00028219,7]
[343954379,1733136644524,-500.0,0.00028219,7]
[343954380,1733136644534,-500.0,0.00028219,7]
[343954381,1733136644543,-500.0,0.00028219,7]
[343954382,1733136644552,-500.0,0.00028219,7]
[343954383,1733136644561,-500.0,0.00028219,7]
[343954384,1733136644574,-303.38131798,0.00028219,7]
[343954385,1733136644584,-2281.35,0.00028219,7]
[343954386,1733136644595,-10990.06,0.00028219,7]
[343954387,1733136644604,-500.0,0.00028219,7]
[343954388,1733136644614,-500.0,0.00028219,7]
[343954389,1733136644624,-500.0,0.00028219,7]
[343954390,1733136644634,-500.0,0.00028219,7]
[343954391,1733136644643,-500.0,0.00028219,7]
[343954392,1733136644653,-500.0,0.00028219,7]
[343954393,1733136644662,-1001.29,0.00028219,7]
[343954394,1733136644672,-500.0,0.00028219,7]
[343954395,1733136644682,-500.0,0.00028219,7]
[343954396,1733136644692,-736.26,0.00028219,7]
[343954397,1733136644701,-500.0,0.00028219,7]
[343954398,1733136644711,-765.33,0.00028219,7]
[343954399,1733136644721,-500.0,0.00028219,7]
[343954400,1733136644730,-500.0,0.00028219,7]
[343954401,1733136644739,-500.0,0.00028219,7]
[343954402,1733136644749,-501.31690766,0.00028405,5]
[343954403,1733136644758,-500.0,0.00028405,5]
[343954404,1733136644768,-155.00061709,0.00028424,2]
[343954405,1733136644777,-306.73908216,0.00028432,5]
[343954406,1733136644786,-261.62533187,0.00028493,7]
[343954407,1733136644797,-638.01,0.00028493,7]
[343954408,1733136644807,-500.0,0.00028493,7]
[343954409,1733136644817,-624.24,0.00028493,7]
[343954410,1733136644828,-500.0,0.00028493,7]
[343954411,1733136644838,-500.0,0.00028493,7]
[343954412,1733136644847,-539.92,0.00028493,7]
[343954413,1733136644857,-500.0,0.00028493,7]
[343954414,1733136644866,-500.0,0.00028493,7]
[343954415,1733136644876,-500.0,0.00028493,7]
[343954416,1733136644889,-538.40957286,0.00028493,7]
[343954417,1733136644899,-2281.35,0.00028493,7]
[343954418,1733136644909,-10990.06,0.00028493,7]
[343954419,1733136644918,-500.0,0.00028493,7]
[343954420,1733136644928,-516.30738873,0.00028493,7]
[343954421,1733136644937,-500.0,0.00028493,7]
[343954422,1733136644946,-500.0,0.00028493,7]
[343954423,1733136644955,-500.0,0.00028493,7]
[343954424,1733136644965,-500.0,0.00028493,7]
[343954425,1733136644975,-1001.29,0.00028493,7]
[343954426,1733136644985,-500.0,0.00028493,7]
[343954427,1733136644995,-500.0,0.00028493,7]
[343954428,1733136645006,-736.26,0.00028493,7]
[343954429,1733136645016,-500.0,0.00028493,7]
[343954430,1733136645026,-765.33,0.00028493,7]
[343954431,1733136645035,-503.5829179,0.00028493,7]
[343954432,1733136645045,-500.0,0.00028493,7]
[343954433,1733136645055,-371.0,0.000285,2]
[343954434,1733136645064,-150.0,0.000285,2]
[343954435,1733136645084,-509.32605,0.00028515,2]
[343954436,1733136645094,-156.186654,0.00028515,2]
[343954437,1733136645104,-172.3,0.00028545,6]
[343954438,1733136645114,-500.0,0.000286,27]
[343954439,1733136645124,-151.0,0.000286,13]
[343954440,1733136645134,-1175.61060509,0.00028649,2]
[343954441,1733136645143,-1309.18713064,0.00028667,2]
[343954442,1733136645154,-638.01,0.00028767,7]
[343954443,1733136645164,-500.0,0.00028767,7]
[343954444,1733136645175,-624.24,0.00028767,7]
[343954445,1733136645185,-500.0,0.00028767,7]
[343954446,1733136645195,-500.0,0.00028767,7]
[343954447,1733136645205,-539.92,0.00028767,7]
[343954448,1733136645215,-500.0,0.00028767,7]